bitfinex-derivatives/quotes_SOLF0:USTF0_20251024
["timestamp","ask_amount","ask_price","bid_price","bid_amount"]
[1761345315555,66.1145038,194.19,194.16,4.65237913]
[1761345315852,66.1145038,194.19,194.11,2.77]
[1761345316053,66.1145038,194.19,194.12,4.6477723]
[1761345316253,66.1145038,194.19,194.13,4.6477723]
[1761345316450,66.1145038,194.19,194.11,2.77]
[1761345316451,66.1145038,194.19,194.14,4.6477723]
[1761345316651,66.1145038,194.19,194.15,4.6477723]
[1761345316845,66.1145038,194.19,194.16,4.6477723]
[1761345317049,66.1145038,194.19,194.11,2.77]
[1761345317243,66.1145038,194.19,194.12,4.64779684]
[1761345317447,66.1145038,194.19,194.13,4.64779684]
[1761345317656,66.1145038,194.19,194.14,4.64779684]
[1761345317955,66.1145038,194.19,194.15,4.64779684]
[1761345318158,66.1145038,194.19,194.16,4.64779684]
[1761345318452,66.1145038,194.19,194.11,2.77]
[1761345318658,66.1145038,194.19,194.12,7.41779527]
[1761345318959,66.1145038,194.19,194.13,4.64779527]
[1761345319155,66.1145038,194.19,194.14,4.64779527]
[1761345319354,66.1145038,194.19,194.15,4.64779527]
[1761345319555,66.1145038,194.19,194.16,4.64779527]
[1761345319755,66.1145038,194.19,194.12,2.77]
[1761345319955,66.1145038,194.19,194.13,4.64745645]
[1761345320159,66.1145038,194.19,194.14,4.64745645]
[1761345320358,66.1145038,194.19,194.15,4.64745645]
[1761345320554,66.1145038,194.19,194.16,4.64745645]
[1761345320762,66.1145038,194.19,194.12,2.77]
[1761345320961,66.1145038,194.19,194.13,4.64742049]
[1761345321160,66.1145038,194.19,194.14,4.64742049]
[1761345321463,64.62,194.19,194.15,4.64742049]
[1761345321660,64.62,194.19,194.16,4.64742049]
[1761345321855,64.62,194.19,194.12,4.2645038]
[1761345322051,64.62,194.19,194.13,4.64738507]
[1761345322363,64.62,194.19,194.14,4.64738507]
[1761345322561,64.62,194.19,194.15,4.64738507]
[1761345322861,64.62,194.19,194.16,4.64738507]
[1761345323062,64.62,194.19,194.12,4.2645038]
[1761345323365,64.62,194.19,194.13,7.41734764]
[1761345323559,64.62,194.19,194.14,7.41734764]
[1761345323760,2.0,194.19,194.15,4.64734764]
[1761345323964,62.58,194.18,194.16,4.64734764]
[1761345324156,62.58,194.18,194.14,2.77]
[1761345324354,62.58,194.18,194.15,4.64734617]
[1761345324558,62.58,194.18,194.16,4.64734617]
[1761345324753,62.58,194.18,194.14,2.77]
[1761345325065,62.58,194.18,194.15,4.64734617]
[1761345325364,62.58,194.18,194.16,4.64734617]
[1761345325564,62.58,194.18,194.11,2.77]
[1761345325764,62.58,194.18,194.12,7.4173457]
[1761345325965,62.58,194.18,194.14,2.77]
[1761345326160,62.58,194.18,194.15,4.6473457]
[1761345326360,62.58,194.18,194.16,4.6473457]
[1761345326562,62.58,194.18,194.14,2.77]
[1761345326763,62.58,194.18,194.15,4.64730464]
[1761345326961,62.58,194.18,194.16,4.64730464]
[1761345327161,62.58,194.18,194.14,2.77]
[1761345327359,62.58,194.18,194.15,4.64736635]
[1761345327563,64.91481011,194.18,194.07,2.77]
[1761345327864,64.91481011,194.18,194.08,4.6496747]
[1761345328064,64.91481011,194.18,194.09,4.6496747]
[1761345328272,71.35581569,194.18,194.1,4.6496747]
[1761345328466,71.35581569,194.18,194.11,4.6496747]
[1761345328661,71.35581569,194.18,194.04,4.79290316]
[1761345328873,2.33481011,194.12,194.05,4.65029749]
[1761345329072,62.58,194.11,194.06,4.65029749]
[1761345329373,62.58,194.11,194.02,2.77]
[1761345331967,62.58,194.11,194.0,4.79290316]
[1761345332171,62.58,194.11,194.0,2.77]
[1761345335179,15.0,194.1,193.97,130.81203083]
[1761345335373,15.0,194.1,193.97,133.58203083]
[1761345335877,15.0,194.1,193.98,2.77]
[1761345339982,15.0,194.1,193.99,2.33481011]
[1761345340177,15.0,194.1,193.99,5.06481011]
[1761345342591,15.0,194.1,193.99,2.73]
[1761345348284,15.0,194.1,194.0,2.33481011]
[1761345348485,62.52,194.09,194.01,2.73]
[1761345349992,62.54,194.08,194.01,2.73]
[1761345351190,15.0,194.1,194.01,2.73]
[1761345351390,62.52,194.09,194.01,2.73]
[1761345353686,62.52,194.08,194.01,2.73]
[1761345359298,62.48,194.07,194.01,2.73]
[1761345361914,15.0,194.1,194.01,2.73]
[1761345362116,62.48,194.09,194.01,2.73]
[1761345364112,62.46,194.08,194.01,2.73]
[1761345371019,15.0,194.1,194.01,2.73]
[1761345371222,62.46,194.07,194.01,2.73]
[1761345377823,15.0,194.1,194.01,2.73]
[1761345378027,62.42,194.09,194.01,2.73]
[1761345379025,62.42,194.09,194.0,4.79290316]
[1761345379426,62.42,194.09,194.0,7.39290316]
[1761345379827,62.42,194.09,194.01,2.6]
[1761345383133,62.42,194.08,194.01,2.6]
[1761345386030,16.49598478,194.1,194.01,2.6]
[1761345386334,62.42,194.07,194.01,2.6]
[1761345390635,62.42,194.07,194.0,4.79290316]
[1761345391234,1.49598478,194.06,194.0,4.79290316]
[1761345391433,1.49598478,194.06,193.98,146.09038755]
[1761345395545,1.49598478,194.06,193.98,141.29748439]
[1761345395746,1.49598478,194.06,193.98,146.11352395]
[1761345396046,1.49598478,194.06,193.99,7.41603956]
[1761345396248,1.49598478,194.06,193.99,2.6]
[1761345396438,62.42,194.05,193.99,2.6]
[1761345398848,62.42,194.05,193.99,7.41603956]
[1761345400156,62.42,194.05,194.0,2.68]
[1761345405852,1.49598478,194.04,193.98,138.69748439]
[1761345406356,1.49598478,194.04,193.98,141.37748439]
[1761345407458,62.42,194.03,193.99,2.68]
[1761345408065,62.42,194.02,193.99,2.68]
[1761345408865,62.42,194.02,193.98,2.68]
[1761345409361,63.91598478,194.02,193.98,2.68]
[1761345410169,63.91598478,194.02,193.96,2.68]
[1761345410967,1.49598478,194.02,193.96,2.68]
[1761345411166,62.42,194.01,193.96,2.68]
[1761345412369,1.49598478,194.02,193.96,2.68]
[1761345412566,1.49598478,194.04,193.96,2.68]
[1761345412768,23.24,194.03,193.96,2.68]
[1761345413071,1.49598478,194.04,193.96,2.68]
[1761345413262,52.28,194.03,193.96,2.68]
[1761345414059,52.28,194.03,193.96,4.17598478]
[1761345414265,1.49598478,194.04,193.96,4.17598478]
[1761345414463,62.42,194.02,193.96,4.17598478]
[1761345414970,62.42,194.02,193.97,2.68]
[1761345415968,1.49598478,194.04,193.97,2.68]
[1761345416168,62.42,194.01,193.97,2.68]
[1761345421278,62.42,194.01,193.93,7.52585816]
[1761345421476,62.42,194.01,193.94,2.71]
[1761345424080,62.42,194.0,193.95,2.71]
[1761345431782,63.91598478,194.0,193.95,2.71]
[1761345437288,15.0,194.06,193.95,2.71]
[1761345437488,1.49598478,194.0,193.95,2.71]
[1761345441193,1.49598478,194.0,193.93,8.91184294]
[1761345441386,1.49598478,194.0,193.94,2.6]
[1761345446698,2.33910543,194.04,193.94,2.6]
[1761345447294,2.33910543,194.04,193.94,4.81585816]
[1761345447497,2.33910543,194.04,193.95,2.6]
[1761345452802,62.42,194.03,193.95,2.6]
[1761345453803,67.24880972,194.03,193.95,2.6]
[1761345454404,4.82880972,194.02,193.95,2.6]
[1761345455406,62.42,194.01,193.95,2.6]
[1761345458301,62.42,194.01,193.94,4.81585816]
[1761345458501,69.58791515,194.01,193.93,7.66585816]
[1761345458902,4.82880972,194.0,193.93,2.85]
[1761345459306,4.82880972,193.99,193.91,4.81585816]
[1761345459506,4.82880972,193.99,193.9,7.66585816]
[1761345460003,71.20011101,194.01,193.9,4.81585816]
[1761345460004,2.33910543,193.95,193.9,4.81585816]
[1761345460202,62.42,193.94,193.86,7.66585816]
[1761345460603,62.42,193.94,193.86,2.85]
[1761345460807,2.33910543,193.95,193.86,2.85]
[1761345461110,31.82,193.94,193.86,2.85]
[1761345464812,56.16,193.93,193.86,2.85]
[1761345473716,56.16,193.93,193.84,2.85]
[1761345475819,62.42,193.92,193.84,2.85]
[1761345477717,64.75910543,193.92,193.84,2.85]
[1761345482424,62.42,193.92,193.84,2.85]
[1761345482618,62.42,193.91,193.84,2.85]
[1761345486226,7.16791515,193.98,193.84,2.85]
[1761345486429,2.33910543,193.93,193.84,2.85]
[1761345486824,62.42,193.92,193.84,2.85]
[1761345491730,7.16791515,193.98,193.84,2.85]
[1761345491937,2.33910543,193.94,193.84,2.85]
[1761345501544,62.42,193.93,193.84,2.85]
[1761345502348,62.42,193.93,193.85,2.61]
[1761345503349,7.16791515,193.94,193.85,2.61]
[1761345503548,62.42,193.93,193.85,2.61]
[1761345503945,7.16791515,193.94,193.85,2.61]
[1761345504153,62.42,193.92,193.85,2.61]
[1761345504354,62.42,193.92,193.85,7.42585816]
[1761345505346,62.42,193.92,193.85,4.81585816]
[1761345505554,62.42,193.92,193.86,2.61]
[1761345506555,7.16791515,193.94,193.86,2.61]
[1761345506743,1.49873723,193.9,193.86,2.61]
[1761345506942,1.49873723,193.92,193.86,2.61]
[1761345507151,62.4,193.9,193.86,2.61]
[1761345508356,1.49873723,193.92,193.86,2.61]
[1761345508547,62.4,193.91,193.86,2.61]
[1761345513860,4.82880972,193.93,193.86,2.61]
[1761345514159,221.79,194.04,193.87,2.61]
[1761345514160,62.4,193.92,193.87,2.61]
[1761345514347,62.4,193.91,193.87,2.61]
[1761345517162,6.44100558,193.97,193.9,2.61]
[1761345517163,1.49873723,193.96,193.9,2.61]
[1761345517357,62.4,193.95,193.9,2.61]
[1761345519263,62.4,193.94,193.9,2.61]
[1761345519462,62.4,193.93,193.9,2.61]
[1761345523268,1.49873723,193.97,193.9,2.61]
[1761345523563,62.4,193.93,193.9,2.61]
[1761345524769,62.38,193.93,193.9,2.61]
[1761345525164,1.49873723,193.99,193.9,2.61]
[1761345525366,30.5,193.98,193.91,2.58]
[1761345531070,1.49873723,193.99,193.91,2.58]
[1761345531276,62.38,193.98,193.91,2.58]
[1761345535075,1.49873723,193.99,193.91,2.58]
[1761345535284,62.38,193.97,193.91,2.58]
[1761345536077,1.49873723,193.99,193.91,2.58]
[1761345536376,62.38,193.96,193.91,2.58]
[1761345536778,1.49873723,193.99,193.91,2.58]
[1761345536976,62.38,193.98,193.91,2.58]
[1761345538078,1.49873723,193.97,193.91,2.58]
[1761345540281,62.38,193.96,193.91,2.58]
[1761345541281,1.49873723,193.97,193.91,2.58]
[1761345541678,62.36,193.96,193.91,2.58]
[1761345545186,1.49873723,193.97,193.91,2.58]
[1761345545378,62.36,193.96,193.91,2.58]
[1761345546180,1.49873723,193.97,193.91,2.58]
[1761345546385,62.36,193.96,193.91,2.58]
[1761345547882,1.49873723,193.97,193.91,2.58]
[1761345548086,62.36,193.96,193.91,2.58]
[1761345549491,1.49873723,193.97,193.91,2.58]
[1761345549688,62.36,193.96,193.91,2.58]
[1761345550687,62.36,193.95,193.91,2.58]
[1761345555486,1.49873723,193.98,193.91,4.82568978]
[1761345555684,62.36,193.97,193.92,2.62]
[1761345556290,62.36,193.97,193.93,2.62]
[1761345558092,1.49873723,193.98,193.93,2.62]
[1761345558294,62.36,193.97,193.93,2.62]
[1761345560496,62.34,193.97,193.93,2.62]
[1761345560995,1.49873723,193.98,193.93,2.62]
[1761345561186,62.34,193.97,193.93,2.62]
[1761345561382,1.49873723,193.98,193.93,2.62]
[1761345561588,62.34,193.97,193.93,2.62]
[1761345570597,2.33945227,194.01,193.93,2.62]
[1761345570798,62.34,194.0,193.93,2.62]
[1761345572802,2.33945227,194.01,193.93,2.62]
[1761345572997,62.34,194.0,193.93,2.62]
[1761345578808,2.33945227,194.01,193.93,2.62]
[1761345579008,62.32,194.0,193.93,2.62]
[1761345586130,2.33945227,194.01,193.93,2.62]
[1761345586337,62.32,194.0,193.93,7.44568978]
[1761345586532,62.32,194.0,193.93,2.62]
[1761345587228,62.32,193.99,193.93,2.62]
[1761345588535,4.82799592,194.02,193.93,2.62]
[1761345588735,64.65945227,194.01,193.93,7.44568978]
[1761345588935,64.65945227,194.01,193.94,2.58]
[1761345591535,64.65945227,194.01,193.92,4.82568978]
[1761345592140,64.65945227,194.01,193.92,7.40568978]
[1761345592737,64.65945227,194.01,193.93,2.58]
[1761345593236,69.48744819,194.01,193.93,2.58]
[1761345595844,64.65945227,194.01,193.93,7.40568978]
[1761345596343,69.48744819,194.01,193.93,7.40568978]
[1761345598838,7.16744819,194.01,193.93,7.40568978]
[1761345599142,62.3,194.0,193.93,7.40568978]
[1761345600442,62.3,193.99,193.93,7.40568978]
[1761345600942,7.16744819,194.01,193.94,2.77]
[1761345601145,7.16744819,194.01,193.93,4.82568978]
[1761345601146,62.3,194.0,193.95,2.77]
[1761345616654,4.82799592,194.03,193.95,4.82568978]
[1761345616858,62.28,194.02,193.98,2.67]
[1761345617155,8.78045785,194.07,193.99,2.67]
[1761345617156,4.82799592,194.06,193.99,2.67]
[1761345617351,62.28,194.05,193.99,2.67]
[1761345617548,62.28,194.04,193.99,2.67]
[1761345618151,62.28,194.04,194.0,2.67]
[1761345619258,4.82799592,194.09,194.0,2.67]
[1761345619460,62.28,194.08,194.0,2.67]
[1761345619650,62.28,194.07,194.0,2.67]
[1761345620561,62.28,194.07,193.95,167.58056985]
[1761345620562,2.33945227,194.03,193.95,167.58056985]
[1761345620763,2.33945227,194.0,193.95,162.75488007]
[1761345620963,62.28,193.99,193.95,165.42488007]
[1761345621362,62.28,193.99,193.96,2.67]
[1761345623067,62.28,193.99,193.95,162.75488007]
[1761345629076,62.28,193.99,193.91,4.82568978]
[1761345629772,62.28,193.99,193.91,7.49568978]
[1761345630678,1.4977602,193.96,193.91,7.49568978]
[1761345630871,1.4977602,193.96,193.92,2.67]
[1761345636183,1.4977602,193.98,193.92,2.67]
[1761345636885,62.28,193.97,193.92,2.67]
[1761345653802,62.28,193.97,193.92,4.1677602]
[1761345654500,62.28,193.97,193.92,2.67]
[1761345655697,1.4977602,193.96,193.92,2.67]
[1761345656000,1.4977602,193.96,193.9,4.82568978]
[1761345656699,1.4977602,193.96,193.9,7.58568978]
[1761345657004,1.4977602,193.96,193.91,2.76]
[1761345657605,1.4977602,193.96,193.89,4.82568978]
[1761345658098,1.4977602,193.96,193.89,7.50568978]
[1761345658506,1.4977602,193.96,193.9,2.68]
[1761345664208,1.4977602,193.94,193.89,4.81958353]
[1761345664507,1.4977602,193.92,193.87,2.68]
[1761345664908,1.4977602,193.92,193.86,154.90543654]
[1761345665111,1.4977602,193.9,193.86,154.90543654]
[1761345666215,1.4977602,193.9,193.86,157.58543654]
[1761345666508,1.4977602,193.9,193.86,154.90543654]
[1761345666709,1.4977602,193.9,193.87,2.68]
[1761345668305,1.4977602,193.9,193.84,7.59958353]
[1761345668510,1.4977602,193.86,193.82,4.81958353]
[1761345668708,1.4977602,193.84,193.81,7.59958353]
[1761345668921,1.4977602,193.82,193.77,7.59958353]
[1761345669109,4.82044823,193.88,193.77,2.78]
[1761345669313,1.4977602,193.81,193.77,2.78]
[1761345669514,32.5977602,193.81,193.77,2.78]
[1761345672017,1.4977602,193.79,193.74,2.78]
[1761345673020,1.4977602,193.77,193.72,2.78]
[1761345673714,1.4977602,193.79,193.72,2.78]
[1761345673920,37.3377602,193.79,193.72,2.78]
[1761345677019,1.4977602,193.77,193.72,2.78]
[1761345678217,15.0,193.87,193.72,2.78]
[1761345678418,1.4977602,193.77,193.72,2.78]
[1761345681023,1.4977602,193.79,193.72,2.78]
[1761345685122,1.4977602,193.77,193.72,2.78]
[1761345690730,2.34453603,193.79,193.72,2.78]
[1761345694039,2.34453603,193.81,193.72,2.78]
[1761345699644,15.0,193.89,193.73,2.83]
[1761345699845,2.34453603,193.83,193.73,2.83]
[1761345707251,64.64453603,193.83,193.73,2.83]
[1761345712355,64.64453603,193.83,193.73,4.81958353]
[1761345712556,64.64453603,193.83,193.74,2.83]
[1761345713559,64.64453603,193.83,193.75,2.83]
[1761345714356,69.46498426,193.83,193.75,2.83]
[1761345718160,7.16498426,193.83,193.75,2.83]
[1761345718459,62.28,193.82,193.75,2.83]
[1761345725768,7.16498426,193.83,193.75,2.83]
[1761345725968,62.28,193.82,193.75,2.83]
[1761345733772,62.28,193.82,193.75,7.64958353]
[1761345733969,62.28,193.82,193.76,2.73]
[1761345735273,4.82044823,193.83,193.76,2.73]
[1761345735579,67.10044823,193.85,193.77,2.73]
[1761345735871,62.28,193.85,193.79,7.54958353]
[1761345736075,62.28,193.85,193.79,2.73]
[1761345746581,2.34453603,193.84,193.77,4.81958353]
[1761345746783,2.34453603,193.84,193.76,7.54958353]
[1761345747284,2.34453603,193.84,193.77,2.73]
[1761345749285,2.34453603,193.78,193.73,4.81958353]
[1761345749480,62.26,193.77,193.73,2.73]
[1761345750683,1.50072943,193.75,193.73,2.73]
[1761345761098,63.76072943,193.77,193.73,2.73]
[1761345768302,1.50072943,193.77,193.73,2.73]
[1761345812655,2.34432976,193.8,193.73,2.73]
[1761345820449,62.24,193.8,193.73,2.73]
[1761345820651,62.24,193.8,193.74,2.83]
[1761345823657,2.34432976,193.77,193.73,4.81958353]
[1761345823862,2.34432976,193.77,193.71,7.64958353]
[1761345828264,2.34432976,193.77,193.71,7.66563958]
[1761345828467,2.34432976,193.77,193.72,2.83]
[1761345835975,4.83139087,193.79,193.72,2.83]
[1761345839574,62.24,193.78,193.72,2.83]
[1761345842878,62.24,193.78,193.7,4.83563958]
[1761345843083,2.34432976,193.74,193.68,2.73]
[1761345843284,62.24,193.73,193.68,2.73]
[1761345843983,2.34432976,193.74,193.68,2.73]
[1761345844179,62.24,193.73,193.68,2.73]
[1761345849688,4.83139087,193.76,193.68,2.73]
[1761345849889,40.2,193.75,193.68,2.73]
[1761345851483,62.24,193.74,193.68,2.73]
[1761345852085,2.34432976,193.73,193.68,2.73]
[1761345854488,62.24,193.74,193.68,2.73]
[1761345859391,2.34432976,193.7,193.63,4.83563958]
[1761345859593,62.24,193.69,193.63,2.79]
[1761345859796,2.34432976,193.67,193.63,2.79]
[1761345872711,63.7419208,193.67,193.63,2.79]
[1761345875814,62.24,193.67,193.63,2.79]
[1761345876808,1.5019208,193.68,193.63,2.79]
[1761345877010,27.14,193.67,193.63,2.79]
[1761345877414,1.5019208,193.68,193.63,2.79]
[1761345877612,27.14,193.67,193.63,2.79]
[1761345882509,1.5019208,193.66,193.63,2.79]
[1761345889326,1.5019208,193.68,193.63,2.79]
[1761345891937,1.5019208,193.71,193.63,2.79]
[1761345895031,1.5019208,193.71,193.63,4.6472]
[1761345895236,1.5019208,193.71,193.64,2.61]
[1761345897134,4.83139087,193.74,193.64,2.61]
[1761345897338,1.5019208,193.72,193.64,2.61]
[1761345903147,1.5019208,193.72,193.65,2.67]
[1761345903337,1.5019208,193.72,193.66,2.67]
[1761345904346,1.5019208,193.72,193.67,2.67]
[1761345908448,1.5019208,193.7,193.67,2.67]
[1761345922342,1.5019208,193.68,193.65,2.79]
[1761345922549,1.5019208,193.66,193.65,2.79]
[1761345923358,1.5019208,193.66,193.62,2.79]
[1761345929455,1.5019208,193.68,193.62,2.79]
[1761345934768,2.34664514,193.7,193.62,2.79]
[1761345951985,4.81400873,193.72,193.63,2.61]
[1761345952187,7.16065387,193.76,193.66,2.61]
[1761345952483,2.34664514,193.76,193.66,2.61]
[1761345953284,7.16065387,193.77,193.67,2.61]
[1761345953779,2.34664514,193.77,193.67,2.61]
[1761345954984,2.34664514,193.77,193.67,4.6462]
[1761345955185,2.34664514,193.8,193.69,2.61]
[1761345955588,2.34664514,193.8,193.69,4.82249559]
[1761345955791,2.34664514,193.8,193.7,2.61]
[1761345965691,4.81400873,193.84,193.72,2.66]
[1761345965999,15.0,193.85,193.74,2.66]
[1761345968903,15.0,193.85,193.76,2.7]
[1761345980512,62.18,193.84,193.76,2.7]
[1761345982013,15.0,193.85,193.76,2.7]
[1761345982209,37.98,193.84,193.76,2.7]
[1761345982910,15.0,193.85,193.76,2.7]
[1761345983214,62.18,193.84,193.76,2.7]
[1761345983619,62.16,193.84,193.76,2.7]
[1761345984515,62.16,193.84,193.76,7.3441]
[1761345984818,62.16,193.84,193.77,2.7]
[1761345989014,2.34664514,193.86,193.78,2.7]
[1761345989220,62.16,193.84,193.78,2.7]
[1761345991025,2.34664514,193.86,193.78,2.7]
[1761345991326,62.16,193.85,193.78,2.7]
[1761345992526,2.34664514,193.86,193.78,2.7]
[1761345992725,62.16,193.84,193.78,2.7]
[1761345993229,2.34664514,193.86,193.78,2.7]
[1761345993422,62.16,193.86,193.79,2.7]
[1761345996827,1.49940245,193.82,193.79,2.7]
[1761345998728,1.49940245,193.84,193.79,2.7]
[1761346003330,1.49940245,193.82,193.79,2.7]
[1761346003542,1.49940245,193.82,193.78,2.84]
[1761346003735,62.16,193.86,193.76,4.6442]
[1761346004039,62.16,193.86,193.72,9.45686118]
[1761346004040,1.49940245,193.78,193.72,9.45686118]
[1761346004232,1.49940245,193.74,193.72,2.84]
[1761346005036,43.22,193.8,193.72,2.84]
[1761346005037,1.49940245,193.78,193.73,2.84]
[1761346006639,1.49940245,193.76,193.73,2.84]
[1761346009539,4.81755962,193.82,193.73,2.84]
[1761346009744,1.49940245,193.77,193.73,2.84]
[1761346018049,50.65755962,193.83,193.73,2.84]
[1761346018050,1.49940245,193.79,193.73,2.84]
[1761346018751,1.49940245,193.81,193.75,2.86]
[1761346019144,1.49940245,193.79,193.75,2.86]
[1761346019554,1.49940245,193.79,193.76,2.86]
[1761346026244,1.49940245,193.79,193.73,4.81166118]
[1761346026448,1.49940245,193.79,193.73,2.86]
[1761346035558,4.81755962,193.82,193.73,2.86]
[1761346035750,1.49940245,193.86,193.78,2.62]
[1761346035955,1.49940245,193.84,193.78,2.62]
[1761346036151,1.49940245,193.82,193.78,2.62]
[1761346038059,1.49940245,193.8,193.74,2.62]
[1761346038262,1.49940245,193.78,193.74,2.62]
[1761346042065,1.49940245,193.76,193.74,2.62]
[1761346047764,1.49940245,193.76,193.72,2.62]
[1761346048071,1.49940245,193.74,193.72,2.62]
[1761346048269,1.49940245,193.74,193.66,6.38898025]
[1761346048270,1.49940245,193.74,193.7,2.62]
[1761346058781,2.34547065,193.75,193.7,2.62]
[1761346063481,2.34547065,193.72,193.64,2.73]
[1761346077384,64.58547065,193.72,193.64,2.73]
[1761346079595,62.24,193.72,193.64,2.73]
[1761346079993,2.34547065,193.73,193.64,2.73]
[1761346080191,62.22,193.71,193.64,2.73]
[1761346084603,62.24,193.7,193.64,2.73]
[1761346088111,64.58547065,193.7,193.64,2.73]
[1761346089212,2.34547065,193.7,193.64,2.73]
[1761346089412,62.24,193.69,193.64,2.73]
[1761346090911,62.24,193.68,193.64,2.73]
[1761346094818,62.22,193.67,193.64,2.73]
[1761346095218,2.34547065,193.7,193.64,2.73]
[1761346095418,2.34547065,193.74,193.64,2.73]
[1761346095619,62.22,193.73,193.64,2.73]
[1761346097120,62.24,193.72,193.64,2.73]
[1761346099620,2.34547065,193.71,193.64,2.73]
[1761346107030,4.81755962,193.73,193.64,2.73]
[1761346107225,64.56547065,193.72,193.64,2.73]
[1761346107524,69.38303027,193.72,193.64,2.73]
[1761346107720,62.22,193.72,193.65,2.8]
[1761346112827,62.24,193.71,193.66,2.8]
[1761346119231,17.34547065,193.74,193.66,2.8]
[1761346119439,62.22,193.73,193.66,2.8]
[1761346119832,15.0,193.74,193.66,2.8]
[1761346120136,62.22,193.73,193.66,2.8]
[1761346124535,16.50097876,193.74,193.66,4.6465]
[1761346124736,27.12,193.73,193.67,2.64]
[1761346125341,4.81755962,193.78,193.68,2.64]
[1761346125542,15.0,193.81,193.68,2.64]
[1761346125543,63.72097876,193.77,193.68,2.64]
[1761346127036,1.50097876,193.75,193.69,2.64]
[1761346136650,1.50097876,193.75,193.69,7.2858]
[1761346136850,1.50097876,193.75,193.7,2.64]
[1761346142047,4.81755962,193.81,193.73,2.58]
[1761346142252,1.50097876,193.81,193.74,2.58]
[1761346142950,1.50097876,193.81,193.74,4.6446]
[1761346143151,1.50097876,193.81,193.75,2.58]
[1761346154051,1.50097876,193.82,193.75,2.58]
[1761346158871,1.50097876,193.82,193.75,1.50097876]
[1761346159069,1.50097876,193.82,193.76,2.77]
[1761346163769,15.0,193.87,193.78,2.77]
[1761346164077,4.80964449,193.9,193.78,2.77]
[1761346164078,1.50097876,193.86,193.78,2.77]
[1761346165171,1.50097876,193.82,193.76,2.77]
[1761346170480,4.80964449,193.88,193.76,2.77]
[1761346170683,15.0,193.87,193.76,2.77]
[1761346170987,1.50097876,193.85,193.76,2.77]
[1761346177096,1.50097876,193.85,193.78,2.77]
[1761346179696,16.50097876,193.87,193.78,2.77]
[1761346181189,1.50097876,193.87,193.78,2.77]
[1761346182686,7.15195237,193.89,193.78,2.77]
[1761346182887,2.34230788,193.89,193.78,2.77]
[1761346184297,7.15195237,193.89,193.78,2.77]
[1761346186597,62.16,193.88,193.78,2.77]
[1761346187099,66.96964449,193.88,193.78,2.77]
[1761346187692,4.80964449,193.88,193.78,2.77]
[1761346189600,69.31195237,193.89,193.79,2.62]
[1761346189801,4.80964449,193.88,193.79,2.62]
[1761346192105,69.31195237,193.89,193.79,2.62]
[1761346194104,4.80964449,193.88,193.79,2.62]
[1761346201809,2.34230788,193.86,193.79,2.62]
[1761346215607,7.15195237,193.86,193.77,4.78580949]
[1761346215800,4.80964449,193.84,193.76,2.85]
[1761346216202,7.15195237,193.83,193.76,2.85]
[1761346216401,2.34230788,193.83,193.76,2.85]
[1761346225307,62.16,193.84,193.76,2.85]
[1761346231118,2.34230788,193.83,193.74,148.32452491]
[1761346231312,2.34230788,193.83,193.71,6.38898025]
[1761346231313,2.34230788,193.8,193.71,7.63580949]
[1761346231513,7.15195237,193.8,193.71,2.85]